bitfinex-derivatives/quotes_BTCF0:USTF0_20260207
["timestamp","ask_amount","ask_price","bid_price","bid_amount"]
[1770500466274,0.43827579,69648.0,69636.0,0.01437]
[1770500472568,0.43827579,69648.0,69629.0,0.32574799]
[1770500472569,0.40696229,69653.0,69643.0,0.014368]
[1770500473075,0.40696229,69653.0,69640.0,0.42239329]
[1770500473874,0.40696229,69653.0,69639.0,0.014369]
[1770500474376,0.40696229,69653.0,69639.0,0.42239329]
[1770500474679,0.40696229,69660.0,69641.0,0.43676229]
[1770500475981,0.40696229,69660.0,69643.0,0.014368]
[1770500476182,0.40696229,69660.0,69642.0,0.42239329]
[1770500476376,0.40696229,69660.0,69649.0,0.014367]
[1770500477473,0.40696229,69660.0,69647.0,0.42239329]
[1770500479188,0.42132729,69660.0,69637.0,0.1144843]
[1770500479377,0.42132729,69660.0,69642.0,0.014368]
[1770500485179,0.42132729,69660.0,69636.0,0.1144843]
[1770500485180,0.40696229,69651.0,69635.0,0.1144843]
[1770500485384,0.40696229,69651.0,69630.0,0.1144843]
[1770500485688,0.40696229,69649.0,69633.0,0.01437]
[1770500488380,0.40696229,69649.0,69632.0,0.42239329]
[1770500488580,0.40696229,69649.0,69638.0,0.014369]
[1770500489478,0.40696229,69649.0,69633.0,0.42239329]
[1770500489479,0.40696229,69649.0,69641.0,0.014368]
[1770500489685,0.40696229,69656.0,69637.0,0.42239329]
[1770500489885,0.071794,69691.0,69634.0,0.1144843]
[1770500489886,0.014362,69675.0,69652.0,0.014366]
[1770500490189,0.40696229,69670.0,69648.0,0.1288513]
[1770500490495,0.40696229,69663.0,69644.0,0.1144843]
[1770500490784,0.40696229,69663.0,69643.0,0.1144843]
[1770500491789,0.40696229,69663.0,69643.0,0.1288523]
[1770500492498,0.40696229,69661.0,69645.0,0.1144843]
[1770500492681,0.40696229,69659.0,69644.0,0.1144843]
[1770500493584,0.40696229,69657.0,69644.0,0.1144843]
[1770500494383,0.40696229,69657.0,69636.0,0.21513226]
[1770500494578,0.40696229,69657.0,69637.0,0.2157406]
[1770500494780,0.40696229,69657.0,69638.0,0.2157406]
[1770500494985,0.40696229,69657.0,69639.0,0.2157406]
[1770500495185,0.40696229,69657.0,69635.0,0.01437]
[1770500495492,0.40696229,69655.0,69631.0,0.014371]
[1770500495691,0.40696229,69655.0,69632.0,0.21576238]
[1770500495994,0.40696229,69655.0,69631.0,0.014371]
[1770500496190,0.40696229,69655.0,69632.0,0.21576685]
[1770500496487,0.44598227,69652.0,69631.0,0.014371]
[1770500496792,0.44598227,69652.0,69632.0,0.21576685]
[1770500497095,0.44598227,69652.0,69631.0,0.014371]
[1770500497285,0.44598227,69652.0,69632.0,0.21576712]
[1770500497488,0.44598227,69650.0,69631.0,0.014371]
[1770500497687,0.44598227,69650.0,69632.0,0.21576712]
[1770500497993,0.44598227,69650.0,69631.0,0.014371]
[1770500498193,0.44598227,69650.0,69632.0,0.21576707]
[1770500498393,0.44598227,69650.0,69631.0,0.014371]
[1770500498594,0.44598227,69650.0,69632.0,0.21576712]
[1770500498791,0.44598227,69650.0,69631.0,0.014371]
[1770500498994,0.44598227,69650.0,69632.0,0.2157672]
[1770500499187,0.44598227,69650.0,69631.0,0.014371]
[1770500499386,0.44598227,69650.0,69632.0,0.2157672]
[1770500499586,0.44598227,69650.0,69631.0,0.014371]
[1770500499895,0.44598227,69650.0,69632.0,0.2157672]
[1770500500087,0.44598227,69650.0,69631.0,0.014371]
[1770500500288,0.44598227,69650.0,69632.0,0.2157672]
[1770500500491,0.44598227,69650.0,69631.0,0.014371]
[1770500500794,0.014362,69676.0,69624.0,0.21513226]
[1770500500795,0.44598227,69640.0,69624.0,0.21513226]
[1770500500991,0.44598227,69640.0,69620.0,0.014373]
[1770500501192,0.44598227,69637.0,69617.0,0.22950626]
[1770500501395,0.44598227,69637.0,69617.0,0.014374]
[1770500501910,0.44598227,69633.0,69617.0,0.014374]
[1770500503310,0.014366,69654.0,69614.0,0.014374]
[1770500503311,0.44598227,69631.0,69614.0,0.014374]
[1770500504409,0.44598227,69631.0,69618.0,0.014373]
[1770500504903,0.44598227,69631.0,69612.0,0.014375]
[1770500506707,0.44598227,69625.0,69608.0,0.014375]
[1770500506907,0.014372,69624.0,69605.0,0.014376]
[1770500507114,0.44598227,69623.0,69605.0,0.014376]
[1770500508308,0.44598227,69621.0,69600.0,0.014377]
[1770500509211,0.014369,69641.0,69600.0,0.014377]
[1770500509212,0.44598227,69619.0,69600.0,0.014377]
[1770500510409,0.44598227,69617.0,69600.0,0.014377]
[1770500515705,0.44598227,69617.0,69603.0,0.014376]
[1770500515905,0.44598227,69617.0,69597.0,0.44451099]
[1770500516106,0.44598227,69630.0,69621.0,0.014373]
[1770500517312,0.44598227,69637.0,69621.0,0.014373]
[1770500521320,0.44598227,69637.0,69613.0,0.44451099]
[1770500521520,0.44598227,69634.0,69616.0,0.014374]
[1770500521720,0.44598227,69634.0,69619.0,0.014373]
[1770500522318,0.44598227,69634.0,69615.0,0.014374]
[1770500523322,0.44598227,69629.0,69609.0,0.014375]
[1770500524022,0.44598227,69627.0,69606.0,0.014376]
[1770500524220,0.44598227,69625.0,69606.0,0.014376]
[1770500525215,0.44598227,69625.0,69601.0,0.44451099]
[1770500525421,0.44598227,69625.0,69598.0,0.17188118]
[1770500525623,0.44598227,69625.0,69598.0,0.59679483]
[1770500525925,0.44598227,69625.0,69599.0,0.21583897]
[1770500526123,0.44598227,69625.0,69609.0,0.014375]
[1770500532525,0.4094369,69623.0,69606.0,0.17188118]
[1770500532728,0.4094369,69623.0,69603.0,0.17188118]
[1770500532938,0.4094369,69623.0,69604.0,0.2158457]
[1770500533137,0.4094369,69623.0,69601.0,0.17188118]
[1770500533438,0.4094369,69619.0,69602.0,0.23022907]
[1770500533634,0.4094369,69619.0,69603.0,0.21585207]
[1770500533836,0.4094369,69619.0,69602.0,0.014377]
[1770500534036,0.4094369,69619.0,69603.0,0.21585523]
[1770500534236,0.4094369,69619.0,69602.0,0.014377]
[1770500534437,0.4094369,69619.0,69603.0,0.21585523]
[1770500534637,0.4094369,69619.0,69604.0,0.23023006]
[1770500534838,0.4094369,69619.0,69600.0,0.014377]
[1770500535040,0.4094369,69619.0,69601.0,0.21586013]
[1770500535337,0.4094369,69617.0,69600.0,0.014377]
[1770500536336,0.4094369,69617.0,69601.0,0.21585978]
[1770500536536,0.4094369,69617.0,69600.0,0.014377]
[1770500536841,0.4094369,69617.0,69601.0,0.21585976]
[1770500537036,0.4094369,69617.0,69600.0,0.014377]
[1770500538439,0.4094369,69615.0,69600.0,0.014377]
[1770500539144,0.4094369,69613.0,69597.0,0.18625918]
[1770500539343,0.4094369,69613.0,69598.0,0.21586584]
[1770500539543,0.4094369,69613.0,69597.0,0.014378]
[1770500539745,0.4094369,69613.0,69598.0,0.21586946]
[1770500540043,0.4094369,69613.0,69600.0,0.014377]
[1770500540942,0.4094369,69613.0,69596.0,0.014378]
[1770500541135,0.4094369,69613.0,69597.0,0.21586937]
[1770500541330,0.4094369,69613.0,69598.0,0.21586937]
[1770500541535,0.4094369,69613.0,69598.0,0.014377]
[1770500542836,0.4094369,69613.0,69600.0,0.014377]
[1770500547048,0.4094369,69613.0,69602.0,0.014377]
[1770500553555,0.4094369,69613.0,69599.0,0.014377]
[1770500554350,0.4094369,69613.0,69599.0,0.12930525]
[1770500557152,0.4094369,69613.0,69601.0,0.014377]
[1770500560758,0.43086651,69633.0,69616.0,0.014374]
[1770500560963,0.43086651,69633.0,69613.0,0.44047024]
[1770500561161,0.43086651,69633.0,69613.0,0.55539849]
[1770500561755,0.43086651,69631.0,69613.0,0.55539849]
[1770500562157,0.43086651,69631.0,69613.0,0.44047024]
[1770500562560,0.43086651,69627.0,69610.0,0.11492825]
[1770500562753,0.43086651,69625.0,69609.0,0.11492825]
[1770500562962,0.44523851,69625.0,69609.0,0.11492825]
[1770500563367,0.44523851,69625.0,69607.0,0.11492825]
[1770500565678,0.44523851,69625.0,69606.0,0.014376]
[1770500565971,0.43086651,69620.0,69604.0,0.11492825]
[1770500566975,0.43086651,69620.0,69604.0,0.12930425]
[1770500567362,0.43086651,69620.0,69604.0,0.014376]
[1770500567562,0.43086651,69620.0,69606.0,0.014376]
[1770500568173,0.43086651,69620.0,69604.0,0.11492825]
[1770500569678,0.43086651,69620.0,69605.0,0.014376]
[1770500570670,0.43086651,69620.0,69605.0,0.12930425]
[1770500572466,0.43086651,69620.0,69605.0,0.014376]
[1770500578988,0.44524151,69611.0,69594.0,0.10572443]
[1770500579179,0.44524151,69611.0,69590.0,0.42609624]
[1770500579379,0.43086651,69611.0,69591.0,0.21587726]
[1770500579687,0.43086651,69611.0,69592.0,0.21587726]
[1770500579988,0.43086651,69608.0,69589.0,0.17188118]
[1770500580186,0.43086651,69608.0,69590.0,0.21588545]
[1770500580479,0.43086651,69608.0,69589.0,0.17188118]
[1770500580480,0.43086651,69608.0,69591.0,0.21588545]
[1770500580690,0.43086651,69608.0,69589.0,0.17188118]
[1770500580882,0.43086651,69608.0,69586.0,0.01438]
[1770500580883,0.43086651,69608.0,69594.0,0.001]
[1770500581384,0.014376,69607.0,69588.0,0.17188118]
[1770500581584,0.43086651,69601.0,69585.0,0.005]
[1770500582178,0.43086651,69601.0,69581.0,0.17188118]
[1770500582374,0.43086651,69601.0,69583.0,0.17188118]
[1770500582685,0.43086651,69601.0,69584.0,0.21590509]
[1770500582881,0.42645459,69601.0,69586.0,0.42609624]
[1770500583190,0.43086651,69623.0,69594.0,0.42609624]
[1770500583380,0.43086651,69623.0,69596.0,0.42609624]
[1770500583783,0.43086651,69623.0,69598.0,0.42609624]
[1770500583984,0.43086651,69620.0,69598.0,0.42609624]
[1770500584286,0.43086651,69618.0,69598.0,0.42609624]
[1770500584682,0.43086651,69618.0,69600.0,0.42609624]
[1770500584883,0.43086651,69618.0,69599.0,0.21586682]
[1770500584884,0.43086651,69618.0,69603.0,0.44047224]
[1770500585084,0.43086651,69625.0,69605.0,0.42609624]
[1770500585289,0.43086651,69623.0,69605.0,0.42609624]
[1770500588788,0.014373,69622.0,69605.0,0.42609624]
[1770500588996,0.014373,69622.0,69607.0,0.42048575]
[1770500589295,0.43550048,69622.0,69607.0,0.42048575]
[1770500590193,0.42112748,69626.0,69607.0,0.42048575]
[1770500590986,0.42112748,69620.0,69602.0,0.43486175]
[1770500591186,0.42112748,69620.0,69603.0,0.21584808]
[1770500591389,0.42112748,69620.0,69601.0,0.17188118]
[1770500591589,0.42112748,69620.0,69602.0,0.21585213]
[1770500591786,0.42112748,69620.0,69603.0,0.21585213]
[1770500591986,0.42112748,69620.0,69600.0,0.17188118]
[1770500592194,0.44595013,69618.0,69601.0,0.23023326]
[1770500592396,0.44595013,69618.0,69602.0,0.21585626]
[1770500592586,0.44595013,69618.0,69603.0,0.21585626]
[1770500592781,0.44595013,69618.0,69601.0,0.43342578]
[1770500592990,0.44595013,69624.0,69610.0,0.43342578]
[1770500593291,0.44595013,69630.0,69612.0,0.43342578]
[1770500606294,0.44595013,69630.0,69614.0,0.43342578]
[1770500610404,0.01437,69635.0,69617.0,0.44779878]
[1770500611002,0.46032013,69635.0,69617.0,0.44779878]
[1770500611204,0.44595013,69635.0,69619.0,0.44779878]
[1770500612404,0.44595013,69635.0,69619.0,0.43342578]
[1770500612801,0.44595013,69632.0,69619.0,0.43342578]
[1770500615604,0.44595013,69632.0,69616.0,0.014374]
[1770500615910,0.41533247,69620.0,69601.0,0.014377]
[1770500616111,0.41533247,69620.0,69602.0,0.23022161]
[1770500616306,0.41533247,69620.0,69602.0,0.014374]
[1770500617222,0.41533247,69618.0,69602.0,0.014374]
[1770500617507,0.41533247,69618.0,69603.0,0.014376]
[1770500617705,0.41533247,69618.0,69606.0,0.014376]
[1770500618417,0.41533247,69618.0,69603.0,0.42751214]
[1770500618614,0.41533247,69618.0,69603.0,0.41313614]
[1770500621217,0.41533247,69618.0,69604.0,0.014376]
[1770500621416,0.41533247,69618.0,69603.0,0.41313614]
[1770500621815,0.41533247,69618.0,69603.0,0.42751214]
[1770500622016,0.41533247,69623.0,69605.0,0.42751214]
[1770500622417,0.41533247,69623.0,69606.0,0.014374]
[1770500622613,0.41533247,69623.0,69607.0,0.41313614]
[1770500623723,0.42970547,69623.0,69607.0,0.41313614]
[1770500627027,0.42970547,69620.0,69607.0,0.41313614]
[1770500627324,0.42970547,69620.0,69606.0,0.014374]
[1770500628025,0.41533247,69630.0,69614.0,0.41313614]
[1770500633127,0.41533247,69630.0,69615.0,0.014374]
[1770500635533,0.42970347,69630.0,69615.0,0.014374]
[1770500641834,0.42970347,69630.0,69611.0,0.014375]
[1770500642035,0.42970347,69630.0,69612.0,0.014374]
[1770500642536,0.014371,69628.0,69612.0,0.014374]
[1770500642742,0.41533247,69627.0,69612.0,0.014374]
[1770500643741,0.41533247,69627.0,69612.0,0.42751014]
[1770500646746,0.41533247,69627.0,69612.0,0.014374]
[1770500646946,0.43436754,69625.0,69612.0,0.014374]
[1770500647141,0.43436754,69623.0,69612.0,0.014374]
[1770500649047,0.43436754,69623.0,69609.0,0.52729076]
[1770500649349,0.43436754,69623.0,69611.0,0.014374]
[1770500650248,0.43436754,69623.0,69610.0,0.11491659]
[1770500650442,0.43436754,69623.0,69611.0,0.014374]
[1770500652453,0.43436754,69623.0,69611.0,0.12937996]
[1770500653545,0.43436754,69623.0,69611.0,0.014374]
[1770500653751,0.43436754,69623.0,69611.0,0.12937996]
[1770500657354,0.43436754,69623.0,69612.0,0.33083978]
[1770500657557,0.43436754,69623.0,69612.0,0.11500596]
[1770500659457,0.43436754,69623.0,69611.0,0.014374]
[1770500659458,0.43436754,69623.0,69611.0,0.12937996]
[1770500661959,0.43436754,69623.0,69612.0,0.33083991]
[1770500662160,0.43436754,69623.0,69612.0,0.11500596]
[1770500662458,0.43436754,69623.0,69611.0,0.014374]
[1770500671867,0.43436754,69623.0,69610.0,0.014375]
[1770500672066,0.43436754,69623.0,69611.0,0.014374]
[1770500672468,0.43436754,69623.0,69611.0,0.12937996]
[1770500672667,0.42203118,69619.0,69603.0,0.17188118]
[1770500672861,0.42203118,69619.0,69599.0,0.21513226]
[1770500672862,0.42203118,69619.0,69604.0,0.21585248]
[1770500673064,0.42203118,69619.0,69605.0,0.21585248]
[1770500673263,0.42203118,69619.0,69601.0,0.17188118]
[1770500673569,0.42203118,69619.0,69602.0,0.21585493]
[1770500673867,0.39130271,69614.0,69597.0,0.17188118]
[1770500674068,0.39130271,69614.0,69598.0,0.2158709]
[1770500674271,0.39130271,69614.0,69599.0,0.2158709]
[1770500674470,0.39130271,69614.0,69600.0,0.2158709]
[1770500674766,0.40028151,69612.0,69594.0,0.17188118]
[1770500674970,0.40028151,69612.0,69595.0,0.23025303]
[1770500675170,0.40028151,69612.0,69596.0,0.21587503]
[1770500675368,0.40028151,69612.0,69597.0,0.21587503]
[1770500675671,0.40028151,69612.0,69595.0,0.014378]
[1770500675869,0.40028151,69612.0,69596.0,0.2158752]
[1770500676071,0.40028151,69612.0,69595.0,0.014378]
[1770500676269,0.40028151,69612.0,69596.0,0.2158752]
[1770500676573,0.40028151,69612.0,69595.0,0.014378]
[1770500676774,0.40028151,69612.0,69596.0,0.2158752]
[1770500676973,0.40028151,69612.0,69595.0,0.014378]
[1770500677179,0.40028151,69612.0,69596.0,0.2158752]
[1770500677473,0.40028151,69612.0,69595.0,0.014378]
[1770500678471,0.40028151,69612.0,69595.0,0.44103439]
[1770500678672,0.40028151,69612.0,69598.0,0.42665639]
[1770500679471,0.40028151,69612.0,69600.0,0.014377]
[1770500680581,0.40028151,69612.0,69598.0,0.42665639]
[1770500680974,0.40028151,69612.0,69599.0,0.014377]
[1770500682581,0.40028151,69612.0,69599.0,0.44103339]
[1770500682782,0.40028151,69612.0,69602.0,0.014377]
[1770500682972,0.41318355,69619.0,69602.0,0.44103339]
[1770500684085,0.41318355,69619.0,69602.0,0.42665639]
[1770500684487,0.40813878,69617.0,69602.0,0.42665639]
[1770500687596,0.40813878,69617.0,69604.0,0.42665639]
[1770500687786,0.39386417,69623.0,69607.0,0.42665639]
[1770500689893,0.3995249,69621.0,69607.0,0.42665639]
[1770500690288,0.4138979,69620.0,69602.0,0.44103239]
[1770500692997,0.39857083,69617.0,69598.0,0.014377]
[1770500694403,0.39548479,69615.0,69598.0,0.014377]
[1770500696003,0.39826866,69613.0,69597.0,0.42665639]
[1770500696303,0.39826866,69596.0,69575.0,0.21513226]
[1770500696503,0.39306866,69582.0,69568.0,0.21513226]
[1770500696801,0.39306866,69582.0,69541.0,0.0002]
[1770500696802,0.39303965,69577.0,69543.0,0.28665967]
[1770500696998,0.18090514,69558.0,69536.0,0.01439]
[1770500697702,0.18273239,69554.0,69532.0,0.44104739]
[1770500697899,0.014383,69574.0,69532.0,0.42665639]
[1770500697900,0.21555838,69552.0,69532.0,0.42665639]
[1770500698097,0.21555838,69550.0,69525.0,0.42665639]
[1770500698600,0.21555838,69548.0,69526.0,0.014392]
[1770500699796,0.014388,69547.0,69525.0,0.42665639]
[1770500700008,0.28876686,69546.0,69522.0,0.014393]
[1770500700306,0.28876686,69546.0,69525.0,0.014392]
[1770500700498,0.28876686,69546.0,69525.0,0.44104839]
[1770500700903,0.28876686,69546.0,69526.0,0.42765639]
[1770500701503,0.28872095,69538.0,69516.0,0.014394]
[1770500701898,0.28872095,69538.0,69514.0,0.42665639]
[1770500702106,0.26933905,69536.0,69514.0,0.42665639]
[1770500702297,0.26933905,69536.0,69515.0,0.014395]
[1770500702494,0.26933905,69551.0,69529.0,0.42665639]
[1770500702694,0.27027409,69541.0,69517.0,0.42665639]
[1770500702901,0.27027409,69541.0,69518.0,0.014394]
[1770500703104,0.27027409,69541.0,69521.0,0.44104939]
[1770500706199,0.27027409,69541.0,69513.0,0.4356356]
[1770500706396,0.26157124,69531.0,69508.0,0.014596]
[1770500706599,0.27596324,69531.0,69508.0,0.0002]
[1770500706800,0.27596324,69531.0,69515.0,0.4500306]
[1770500706801,0.26157124,69531.0,69515.0,0.4500306]
[1770500707008,0.26252378,69540.0,69515.0,0.4500306]
[1770500707204,0.01439,69539.0,69513.0,0.4356356]
[1770500707405,0.26252378,69538.0,69513.0,0.4356356]
[1770500708405,0.27604276,69545.0,69523.0,0.4356356]
[1770500708806,0.27604276,69545.0,69525.0,0.4356356]
[1770500709301,0.27697974,69560.0,69535.0,0.4356356]
[1770500709506,0.27697974,69558.0,69532.0,0.4356356]
[1770500709708,0.27781617,69549.0,69525.0,0.4500276]
[1770500710702,0.27781617,69549.0,69525.0,0.4356356]
[1770500711005,0.27781617,69549.0,69528.0,0.4500276]
[1770500711999,0.27781617,69549.0,69528.0,0.4356356]
[1770500712303,0.27477083,69545.0,69520.0,0.43202682]
[1770500712509,0.27477083,69545.0,69534.0,0.0002]
[1770500712709,0.27556611,69540.0,69514.0,0.014395]
[1770500712910,0.28995611,69540.0,69517.0,0.014394]
[1770500713306,0.2756471,69536.0,69517.0,0.014394]
[1770500715309,0.28146408,69534.0,69513.0,0.43202782]
[1770500717301,0.28146408,69534.0,69513.0,0.41763282]
[1770500717605,0.08631,69564.0,69522.0,0.41763282]
[1770500717606,0.30401768,69542.0,69522.0,0.41763282]
[1770500717907,0.30281768,69542.0,69528.0,0.014392]
[1770500719112,0.24786543,69551.0,69533.0,0.43202382]
[1770500719315,0.014386,69556.0,69536.0,0.43202282]
[1770500719619,0.24860613,69545.0,69522.0,0.014393]
[1770500719913,0.21382899,69543.0,69519.0,0.41763282]
[1770500720311,0.014386,69558.0,69508.0,0.41763282]
[1770500720312,0.21382899,69535.0,69508.0,0.41763282]
[1770500721113,0.21458576,69533.0,69513.0,0.014395]
[1770500721914,0.22380085,69527.0,69509.0,0.41763282]
[1770500722814,0.22380085,69527.0,69510.0,0.014396]
[1770500725418,0.22380085,69527.0,69513.0,0.014395]
[1770500726023,0.22380085,69527.0,69509.0,0.43202882]
[1770500727117,0.2283568,69539.0,69513.0,0.41763282]
[1770500727820,0.22452669,69537.0,69513.0,0.41763282]
[1770500728121,0.22452669,69535.0,69513.0,0.014395]
[1770500728315,0.22452669,69529.0,69510.0,0.014396]
[1770500731019,0.22452669,69529.0,69512.0,0.014395]
[1770500731221,0.22452669,69529.0,69514.0,0.014395]
[1770500734028,0.22452669,69529.0,69511.0,0.014395]
[1770500736529,0.23636084,69527.0,69508.0,0.12935555]
[1770500736830,0.23636084,69527.0,69508.0,0.014396]
[1770500737025,0.23697822,69525.0,69507.0,0.41763282]
[1770500737225,0.23697822,69525.0,69505.0,0.12935655]
[1770500737431,0.23697822,69523.0,69505.0,0.014397]
[1770500737725,0.23755295,69521.0,69500.0,0.53740968]
[1770500738120,0.23755295,69521.0,69500.0,0.42245013]
[1770500738317,0.23808969,69516.0,69499.0,0.11495955]
[1770500738530,0.23808969,69514.0,69495.0,0.0002]
[1770500739032,0.23869159,69509.0,69495.0,0.0002]
[1770500739221,0.23869159,69509.0,69489.0,0.11495955]
[1770500739422,0.014393,69525.0,69483.0,0.11495955]
[1770500739423,0.23869159,69496.0,69483.0,0.11495955]
[1770500739622,0.23869159,69496.0,69474.0,0.17235167]
[1770500739818,0.23869159,69496.0,69476.0,0.014403]
[1770500740026,0.23705343,69507.0,69485.0,0.014401]
[1770500740428,0.23705343,69503.0,69481.0,0.43685213]
[1770500740626,0.23787246,69501.0,69481.0,0.43685213]
[1770500740829,0.23792097,69496.0,69475.0,0.42245013]
[1770500741024,0.23792097,69494.0,69475.0,0.43685313]
[1770500741225,0.23792097,69487.0,69473.0,0.0002]
[1770500741418,0.23792097,69487.0,69466.0,0.014405]
[1770500741626,0.049,69474.0,69455.0,0.0002]
[1770500741823,0.0488,69474.0,69456.0,0.17186032]
[1770500742127,0.01425988,69484.0,69467.0,0.21525683]
[1770500742331,0.014402,69481.0,69468.0,0.21525683]
[1770500742527,0.014402,69481.0,69469.0,0.21525683]
[1770500742832,0.014402,69481.0,69463.0,0.0002]
[1770500743032,0.00011137,69480.0,69464.0,0.21525683]
[1770500743235,0.014402,69481.0,69464.0,0.21525683]
[1770500743435,0.014402,69481.0,69465.0,0.21525683]
[1770500743934,0.02969953,69479.0,69466.0,0.21525683]
[1770500744131,0.01529753,69478.0,69467.0,0.21525683]
[1770500744329,0.01529753,69476.0,69464.0,0.17186032]
[1770500744528,0.01529753,69474.0,69462.0,0.0002]
[1770500744733,0.014403,69476.0,69455.0,0.46262339]
[1770500744734,0.01579901,69473.0,69463.0,0.17186032]
[1770500744932,0.01583037,69472.0,69456.0,0.17186032]
[1770500745331,0.01583037,69470.0,69456.0,0.17186032]
[1770500745635,0.01583037,69468.0,69456.0,0.17186032]
[1770500746024,0.00985149,69466.0,69456.0,0.17186032]
[1770500746435,0.00985149,69465.0,69452.0,0.0002]
[1770500746623,0.01032875,69463.0,69453.0,0.17186032]
[1770500746827,0.00012684,69462.0,69453.0,0.17186032]
[1770500747024,0.01032875,69463.0,69453.0,0.17186032]
[1770500747227,0.01032875,69463.0,69449.0,0.0002]
[1770500747727,0.01082625,69459.0,69438.0,0.0002]
[1770500747935,0.014406,69459.0,69438.0,0.0002]
[1770500748125,0.014407,69457.0,69434.0,0.014411]
[1770500748330,0.014406,69461.0,69434.0,0.014411]
[1770500748531,0.014407,69458.0,69434.0,0.47799099]
[1770500749141,0.014407,69456.0,69434.0,0.46357999]
[1770500749344,0.014407,69456.0,69443.0,0.0002]
[1770500750538,0.014407,69456.0,69434.0,0.46377999]
[1770500750740,0.00014841,69455.0,69434.0,0.46377999]
[1770500750927,0.00014841,69454.0,69434.0,0.46377999]
[1770500751129,0.00014841,69453.0,69434.0,0.46377999]
[1770500751334,0.00014841,69452.0,69438.0,0.46218906]
[1770500751528,0.014405,69466.0,69448.0,0.46218906]
[1770500751739,0.014406,69463.0,69449.0,0.0002]
[1770500752836,0.014406,69463.0,69448.0,0.46218906]
[1770500753840,0.014406,69460.0,69448.0,0.46218906]
[1770500755237,0.00011253,69459.0,69448.0,0.46218906]
[1770500755438,0.014406,69460.0,69448.0,0.46218906]
[1770500757340,0.014406,69460.0,69442.0,0.46130815]
[1770500757740,0.00014841,69459.0,69442.0,0.46130815]
[1770500757942,0.014406,69460.0,69442.0,0.46130815]
[1770500759748,0.014406,69460.0,69445.0,0.0002]
[1770500760351,0.00095905,69476.0,69447.0,0.46173]
[1770500760648,0.014404,69468.0,69452.0,0.46168845]
[1770500760856,0.0014896,69468.0,69449.0,0.0002]
[1770500761046,0.0014896,69475.0,69451.0,0.46168279]
[1770500761552,0.014404,69469.0,69451.0,0.46168279]
[1770500761945,0.0014896,69475.0,69451.0,0.46168279]
[1770500762346,0.014405,69468.0,69451.0,0.46168279]
[1770500762552,0.014406,69459.0,69439.0,0.47836388]
[1770500763547,0.014407,69456.0,69439.0,0.47836388]
[1770500763749,0.014406,69459.0,69439.0,0.47836388]
[1770500764651,0.014407,69456.0,69439.0,0.46395388]
[1770500765246,0.014408,69453.0,69434.0,0.014411]
[1770500765849,0.014408,69453.0,69434.0,0.47986485]
[1770500766156,0.00474962,69454.0,69434.0,0.46545385]
[1770500766348,0.00474962,69454.0,69437.0,0.014411]
[1770500767051,0.00511617,69450.0,69432.0,0.0002]
[1770500767248,0.00511617,69450.0,69432.0,0.014412]
[1770500767449,0.00511617,69450.0,69431.0,0.46141979]
[1770500767654,0.00511617,69450.0,69430.0,0.014412]
[1770500767655,0.014407,69455.0,69436.0,0.46141979]
[1770500767852,0.014406,69459.0,69438.0,0.46141979]
[1770500768051,0.014406,69463.0,69442.0,0.45841769]
[1770500768945,0.014406,69463.0,69444.0,0.45841194]
[1770500770758,0.014406,69460.0,69444.0,0.45841194]
[1770500771855,0.0115581,69471.0,69450.0,0.014408]
[1770500772060,0.0259621,69471.0,69451.0,0.44946338]
[1770500773461,0.0259621,69471.0,69452.0,0.47087505]
[1770500773862,0.014404,69472.0,69456.0,0.45646705]
[1770500774063,0.014404,69469.0,69456.0,0.45646705]
[1770500774864,0.43039454,69487.0,69460.0,0.45235746]
[1770500774865,0.02105786,69486.0,69460.0,0.45235746]
[1770500775163,0.014401,69485.0,69465.0,0.45235746]
[1770500775551,0.014401,69485.0,69467.0,0.45235746]
[1770500775756,0.0144,69489.0,69471.0,0.45235746]
[1770500775959,0.03576488,69493.0,69461.0,0.0002]
[1770500776155,0.03576488,69493.0,69462.0,0.45272425]
[1770500776359,0.0346645,69489.0,69463.0,0.014405]
[1770500776757,0.014402,69481.0,69463.0,0.014405]
[1770500777062,0.014402,69481.0,69463.0,0.46712925]
[1770500778761,0.014401,69487.0,69468.0,0.46966699]
[1770500779164,0.014401,69487.0,69456.0,0.0002]
[1770500779165,0.014401,69487.0,69471.0,0.45525878]
[1770500779361,0.0144,69490.0,69471.0,0.45525878]
[1770500779869,0.0144,69490.0,69473.0,0.45406585]
[1770500780758,0.0144,69490.0,69474.0,0.46846885]
[1770500781354,0.014399,69493.0,69474.0,0.46846885]
[1770500782564,0.0144,69491.0,69474.0,0.46846885]
[1770500782867,0.0144,69491.0,69474.0,0.45406585]
[1770500783764,0.0144,69491.0,69476.0,0.45332616]
[1770500784460,0.014399,69494.0,69476.0,0.45332616]
[1770500784766,0.02815643,69495.0,69478.0,0.45581588]
[1770500786071,0.014398,69497.0,69480.0,0.45601566]
[1770500786569,0.02812373,69502.0,69480.0,0.45601566]
[1770500786967,0.02842804,69492.0,69467.0,0.45621184]
[1770500787368,0.014401,69483.0,69467.0,0.45621184]
[1770500787672,0.02842804,69492.0,69467.0,0.45621184]
[1770500787873,0.014401,69484.0,69467.0,0.45621184]
[1770500788172,0.014401,69484.0,69467.0,0.45601184]
[1770500789664,0.014402,69482.0,69467.0,0.45601184]
[1770500794872,0.014401,69485.0,69467.0,0.45601184]
[1770500795275,0.014402,69481.0,69467.0,0.45601184]
[1770500795575,0.014404,69469.0,69452.0,0.014408]
[1770500795770,0.014404,69469.0,69453.0,0.46143218]
[1770500795971,0.0354,69463.0,69453.0,0.46143218]
[1770500796279,0.0354,69454.0,69453.0,0.46143218]
[1770500796464,0.0354,69454.0,69453.0,0.3168885]
[1770500796667,0.014405,69465.0,69453.0,0.3168885]
[1770500796868,0.03539917,69464.0,69453.0,0.3168885]
[1770500797168,0.014405,69463.0,69453.0,0.3168885]
[1770500797364,0.04980417,69463.0,69453.0,0.3168885]
[1770500797568,0.03539917,69462.0,69453.0,0.3168885]
[1770500797969,0.03539917,69461.0,69447.0,0.43437418]
[1770500798170,0.03539917,69462.0,69447.0,0.43437418]
[1770500798572,0.03539917,69461.0,69447.0,0.43437418]
[1770500798770,0.24256069,69462.0,69440.0,0.43437418]
[1770500798979,0.20716152,69462.0,69440.0,0.33423306]
[1770500799281,0.014408,69453.0,69440.0,0.33423306]
[1770500799665,0.014408,69451.0,69433.0,0.43437418]
[1770500800078,0.03539917,69450.0,69433.0,0.43437418]
[1770500800474,0.03539917,69449.0,69433.0,0.43437418]
[1770500800672,0.03539917,69450.0,69433.0,0.43437418]
[1770500801077,0.03539917,69449.0,69433.0,0.43437418]
[1770500801278,0.03539917,69450.0,69433.0,0.43437418]
[1770500801786,0.014409,69448.0,69433.0,0.43437418]
[1770500802180,0.03539917,69447.0,69433.0,0.43437418]
[1770500802584,0.01441,69443.0,69433.0,0.42306921]
[1770500802786,0.014409,69446.0,69433.0,0.42306921]